fUSD/lending_fUSD_20250202
["ID","MTS","AMOUNT","RATE_DAILY","PERIOD"]
[351274469,1738505456602,-500.0,0.00011095,2]
[351274470,1738505456611,-500.0,0.00011095,2]
[351274471,1738505456620,-500.0,0.00011095,2]
[351274472,1738505456630,-500.0,0.00011095,2]
[351274473,1738505456639,-500.0,0.00011095,2]
[351274474,1738505456648,-5963.38,0.00011095,2]
[351274475,1738505456658,-632.65,0.00011095,2]
[351274476,1738505456667,-528.98,0.00011095,2]
[351274477,1738505456676,-500.0,0.00011095,2]
[351274478,1738505456686,-939.46,0.00011095,2]
[351274479,1738505456695,-500.0,0.00011095,2]
[351274480,1738505456704,-2575.73,0.00011095,2]
[351274481,1738505456713,-1411.82,0.00011095,2]
[351274482,1738505456723,-500.0,0.00011095,2]
[351274483,1738505456732,-356.13470287,0.00011095,2]
[351274484,1738505456741,-500.0,0.00011095,2]
[351274485,1738505456750,-500.0,0.00011095,2]
[351274486,1738505456760,-500.0,0.00011095,2]
[351274487,1738505456769,-4332.07,0.00011095,2]
[351274488,1738505456778,-500.0,0.00011095,2]
[351274489,1738505456787,-500.0,0.00011095,2]
[351274490,1738505456796,-500.0,0.00011095,2]
[351274491,1738505456805,-500.0,0.00011095,2]
[351274492,1738505456814,-623.14,0.00011095,2]
[351274493,1738505456823,-808.47,0.00011095,2]
[351274494,1738505456833,-500.0,0.00011095,2]
[351274495,1738505456842,-500.0,0.00011095,2]
[351274496,1738505456851,-322.33488925,0.00011095,2]
[351274497,1738505456860,-501.48221476,0.00011095,2]
[351274498,1738505456870,-500.0,0.00011095,2]
[351274499,1738505456879,-241.83,0.00011095,2]
[351274500,1738505456888,-500.0,0.00011095,2]
[351274501,1738505456897,-500.0,0.00011095,2]
[351274502,1738505456906,-1167.23,0.00011095,2]
[351274503,1738505456915,-500.0,0.00011095,2]
[351274504,1738505456925,-1073.14,0.00011095,2]
[351274505,1738505456934,-1266.06,0.00011095,2]
[351274506,1738505456943,-500.0,0.00011095,2]
[351274507,1738505456953,-1643.83,0.00011095,2]
[351274508,1738505456962,-1098.43,0.00011095,2]
[351274509,1738505456971,-2134.84,0.00011095,2]
[351274510,1738505456981,-500.0,0.00011095,2]
[351274511,1738505456990,-500.0,0.00011095,2]
[351274512,1738505456999,-7531.63,0.00011095,2]
[351274513,1738505457008,-500.0,0.00011095,2]
[351274514,1738505457018,-636.47,0.00011095,2]
[351274515,1738505457027,-2806.74,0.00011095,2]
[351274516,1738505457036,-500.0,0.00011095,2]
[351274517,1738505457045,-500.0,0.00011095,2]
[351274518,1738505457055,-500.0,0.00011095,2]
[351274519,1738505457063,-500.0,0.00011095,2]
[351274520,1738505457073,-4457.82,0.00011095,2]
[351274521,1738505457082,-170.12869056,0.00011095,2]
[351274522,1738505457091,-500.0,0.00011095,2]
[351274523,1738505457101,-1068.36,0.00011095,2]
[351274524,1738505457110,-500.0,0.00011095,2]
[351274525,1738505457119,-1431.15,0.00011095,2]
[351274526,1738505457128,-500.0,0.00011095,2]
[351274527,1738505457138,-8487.58014,0.00011095,2]
[351274528,1738505457147,-3317.75,0.00011095,2]
[351274529,1738505457156,-500.0,0.00011095,2]
[351274530,1738505457166,-500.0,0.00011095,2]
[351274531,1738505457175,-500.0,0.00011095,2]
[351274532,1738505457184,-500.0,0.00011095,2]
[351274533,1738505457193,-500.0,0.00011095,2]
[351274534,1738505457202,-500.0,0.00011095,2]
[351274535,1738505457211,-3236.23,0.00011095,2]
[351274536,1738505457221,-500.0,0.00011095,2]
[351274537,1738505457230,-500.0,0.00011095,2]
[351274538,1738505457239,-998.58,0.00011095,2]
[351274539,1738505457248,-500.0,0.00011095,2]
[351274540,1738505457258,-649.19,0.00011095,2]
[351274541,1738505457267,-500.0,0.00011095,2]
[351274542,1738505457276,-500.0,0.00011095,2]
[351274543,1738505457285,-647.76,0.00011095,2]
[351274544,1738505457294,-3603.07,0.00011095,2]
[351274545,1738505457304,-496.919677,0.00011095,2]
[351274546,1738505457313,-518.71,0.00011095,2]
[351274547,1738505457322,-500.0,0.00011095,2]
[351274548,1738505457332,-1323.48,0.00011095,2]
[351274549,1738505457341,-2773.67,0.00011095,2]
[351274550,1738505457350,-500.0,0.00011095,2]
[351274551,1738505457359,-500.0,0.00011095,2]
[351274552,1738505457369,-500.0,0.00011095,2]
[351274553,1738505457378,-500.0,0.00011095,2]
[351274554,1738505457387,-1377.07,0.00011095,2]
[351274555,1738505457396,-3478.77,0.00011095,2]
[351274556,1738505457406,-500.0,0.00011095,2]
[351274557,1738505457415,-1559.79,0.00011095,2]
[351274558,1738505457429,-500.0,0.00011095,2]
[351274559,1738505457438,-993.51,0.00011095,2]
[351274560,1738505457448,-532.1,0.00011095,2]
[351274561,1738505457458,-500.0,0.00011095,2]
[351274562,1738505457468,-1353.14,0.00011095,2]
[351274563,1738505457479,-5584.57,0.00011095,2]
[351274564,1738505457491,-500.0,0.00011095,2]
[351274565,1738505457501,-1889.01,0.00011095,2]
[351274566,1738505457511,-500.0,0.00011095,2]
[351274567,1738505457525,-500.0,0.00011095,2]
[351274568,1738505457534,-628.58,0.00011095,2]
[351274569,1738505457544,-1706.09,0.00011095,2]
[351274570,1738505457553,-500.0,0.00011095,2]
[351274571,1738505457564,-500.0,0.00011095,2]
[351274572,1738505457574,-500.0,0.00011095,2]
[351274573,1738505457583,-966.92,0.00011095,2]
[351274574,1738505457594,-1416.56,0.00011095,2]
[351274575,1738505457603,-500.0,0.00011095,2]
[351274576,1738505457613,-555.56,0.00011095,2]
[351274577,1738505457621,-820.07,0.00011095,2]
[351274578,1738505457630,-865.01,0.00011095,2]
[351274579,1738505457640,-500.0,0.00011095,2]
[351274580,1738505457649,-6599.2,0.00011095,2]
[351274581,1738505457658,-500.0,0.00011095,2]
[351274582,1738505457668,-500.0,0.00011095,2]
[351274583,1738505457679,-4362.97,0.00011095,2]
[351274584,1738505457690,-3023.49,0.00011095,2]
[351274585,1738505457699,-1475.65,0.00011095,2]
[351274586,1738505457709,-500.0,0.00011095,2]
[351274587,1738505457719,-535.02,0.00011095,2]
[351274588,1738505457729,-1337.09,0.00011095,2]
[351274589,1738505457739,-786.41,0.00011095,2]
[351274590,1738505457748,-1903.11,0.00011095,2]
[351274591,1738505457758,-1205.96,0.00011095,2]
[351274592,1738505457767,-2817.82,0.00011095,2]
[351274593,1738505457777,-2360.45,0.00011095,2]
[351274594,1738505457786,-500.0,0.00011095,2]
[351274595,1738505457795,-500.0,0.00011095,2]
[351274596,1738505457805,-500.0,0.00011095,2]
[351274597,1738505457814,-241.78521487,0.00011095,2]
[351274598,1738505457823,-501.62258616,0.00011095,2]
[351274599,1738505457832,-7826.051899,0.00011095,2]
[351274600,1738505457842,-934.52,0.00011095,2]
[351274601,1738505457852,-583.26,0.00011095,2]
[351274602,1738505457861,-1388.22,0.00011095,2]
[351274603,1738505457871,-502.88498992,0.00011095,2]
[351274604,1738505457881,-602.54392622,0.00011095,2]
[351274605,1738505457891,-500.0,0.00011095,2]
[351274606,1738505457900,-500.0,0.00011095,2]
[351274607,1738505457909,-500.0,0.00011095,2]
[351274608,1738505457918,-2432.51,0.00011095,2]
[351274609,1738505457929,-500.0,0.00011095,2]
[351274610,1738505457939,-609.67,0.00011095,2]
[351274611,1738505457949,-2243.95,0.00011095,2]
[351274612,1738505457958,-1262.46,0.00011095,2]
[351274613,1738505457968,-500.0,0.00011095,2]
[351274614,1738505457978,-2572.68,0.00011095,2]
[351274615,1738505457988,-500.0,0.00011095,2]
[351274616,1738505457998,-1181.19,0.00011095,2]
[351274617,1738505458008,-1950.74,0.00011095,2]
[351274618,1738505458018,-500.0,0.00011095,2]
[351274619,1738505458028,-500.0,0.00011095,2]
[351274620,1738505458038,-500.0,0.00011095,2]
[351274621,1738505458047,-500.0,0.00011095,2]
[351274622,1738505458056,-871.86,0.00011095,2]
[351274623,1738505458066,-500.0,0.00011095,2]
[351274624,1738505458075,-1126.88,0.00011095,2]
[351274625,1738505458085,-541.6,0.00011095,2]
[351274626,1738505458095,-2805.0,0.00011095,2]
[351274627,1738505458105,-476.543439,0.00011095,2]
[351274628,1738505458115,-500.0,0.00011095,2]
[351274629,1738505458125,-214.89436831,0.00011095,2]
[351274630,1738505458135,-2478.61,0.00011095,2]
[351274631,1738505458144,-3490.69,0.00011095,2]
[351274632,1738505458153,-1886.99,0.00011095,2]
[351274633,1738505458162,-693.62,0.00011095,2]
[351274634,1738505458173,-502.7122566,0.00011095,2]
[351274635,1738505458183,-1166.42,0.00011095,2]
[351274636,1738505458192,-4718.72,0.00011095,2]
[351274637,1738505458202,-646.83,0.00011095,2]
[351274638,1738505458212,-500.0,0.00011095,2]
[351274639,1738505458221,-500.0,0.00011095,2]
[351274640,1738505458231,-500.0,0.00011095,2]
[351274641,1738505458241,-1219.56,0.00011095,2]
[351274642,1738505458250,-500.0,0.00011095,2]
[351274643,1738505458261,-1713.43,0.00011095,2]
[351274644,1738505458271,-500.0,0.00011095,2]
[351274645,1738505458281,-764.96,0.00011095,2]
[351274646,1738505458291,-500.0,0.00011095,2]
[351274647,1738505458302,-742.31,0.00011095,2]
[351274648,1738505458312,-585.08,0.00011095,2]
[351274649,1738505458322,-5247.94,0.00011095,2]
[351274650,1738505458332,-5157.65,0.00011095,2]
[351274651,1738505458342,-1545.21,0.00011095,2]
[351274652,1738505458352,-2240.61,0.00011095,2]
[351274653,1738505458361,-500.0,0.00011095,2]
[351274654,1738505458370,-1481.58,0.00011095,2]
[351274655,1738505458381,-500.0,0.00011095,2]
[351274656,1738505458391,-535.67,0.00011095,2]
[351274657,1738505458401,-1399.19,0.00011095,2]
[351274658,1738505458410,-500.0,0.00011095,2]
[351274659,1738505458420,-1485.26,0.00011095,2]
[351274660,1738505458431,-500.0,0.00011095,2]
[351274661,1738505458441,-1311.36,0.00011095,2]
[351274662,1738505458451,-500.0,0.00011095,2]
[351274664,1738505458460,-3226.98,0.00011095,2]
[351274665,1738505458470,-500.0,0.00011095,2]
[351274666,1738505458480,-5680.36,0.00011095,2]
[351274667,1738505458491,-500.0,0.00011095,2]
[351274668,1738505458501,-500.0,0.00011095,2]
[351274669,1738505458513,-2300.21,0.00011095,2]
[351274670,1738505458527,-500.0,0.00011095,2]
[351274671,1738505458537,-2521.42,0.00011095,2]
[351274672,1738505458547,-2782.57,0.00011095,2]
[351274673,1738505458558,-1697.0,0.00011095,2]
[351274674,1738505458568,-500.0,0.00011095,2]
[351274675,1738505458578,-500.0,0.00011095,2]
[351274676,1738505458588,-500.0,0.00011095,2]
[351274677,1738505458598,-500.0,0.00011095,2]
[351274678,1738505458608,-1766.1,0.00011095,2]
[351274679,1738505458619,-1939.71,0.00011095,2]
[351274680,1738505458629,-2812.15,0.00011095,2]
[351274681,1738505458639,-500.0,0.00011095,2]
[351274682,1738505458649,-787.48,0.00011095,2]
[351274683,1738505458659,-1300.79,0.00011095,2]
[351274684,1738505458669,-3484.78,0.00011095,2]
[351274685,1738505458679,-500.0,0.00011095,2]
[351274686,1738505458688,-1213.23,0.00011095,2]
[351274687,1738505458698,-500.0,0.00011095,2]
[351274688,1738505458707,-512.49,0.00011095,2]
[351274689,1738505458718,-500.0,0.00011095,2]
[351274690,1738505458728,-500.0,0.00011095,2]
[351274691,1738505458738,-2449.26,0.00011095,2]
[351274692,1738505458747,-5629.82,0.00011095,2]
[351274693,1738505458757,-758.01,0.00011095,2]
[351274694,1738505458767,-500.0,0.00011095,2]
[351274695,1738505458777,-500.0,0.00011095,2]
[351274696,1738505458786,-500.0,0.00011095,2]
[351274697,1738505458796,-848.99,0.00011095,2]
[351274698,1738505458806,-888.7,0.00011095,2]
[351274699,1738505458816,-500.0,0.00011095,2]
[351274700,1738505458826,-500.0,0.00011095,2]
[351274701,1738505458836,-4605.95,0.00011095,2]
[351274702,1738505458845,-2359.63,0.00011095,2]
[351274703,1738505458855,-892.49,0.00011095,2]
[351274704,1738505458865,-871.23,0.00011095,2]
[351274705,1738505458875,-1094.04,0.00011095,2]
[351274706,1738505458885,-6442.67,0.00011095,2]
[351274707,1738505458895,-500.0,0.00011095,2]
[351274708,1738505458906,-1297.27,0.00011095,2]
[351274709,1738505458916,-2052.81,0.00011095,2]
[351274710,1738505458927,-1553.08,0.00011095,2]
[351274711,1738505458937,-500.0,0.00011095,2]
[351274712,1738505458947,-500.0,0.00011095,2]
[351274713,1738505458957,-2655.71,0.00011095,2]
[351274714,1738505458967,-500.0,0.00011095,2]
[351274715,1738505458978,-1885.94,0.00011095,2]
[351274716,1738505458988,-500.0,0.00011095,2]
[351274717,1738505458998,-500.0,0.00011095,2]
[351274718,1738505459008,-10441.41,0.00011095,2]
[351274719,1738505459018,-500.0,0.00011095,2]
[351274720,1738505459028,-1012.3,0.00011095,2]
[351274721,1738505459038,-500.0,0.00011095,2]
[351274722,1738505459048,-4514.04,0.00011095,2]
[351274723,1738505459057,-3003.61,0.00011095,2]
[351274724,1738505459067,-2902.94,0.00011095,2]
[351274725,1738505459076,-500.0,0.00011095,2]
[351274726,1738505459086,-1964.45,0.00011095,2]
[351274727,1738505459096,-4716.6,0.00011095,2]
[351274728,1738505459106,-500.0,0.00011095,2]
[351274729,1738505459117,-1593.35,0.00011095,2]
[351274730,1738505459126,-500.0,0.00011095,2]
[351274731,1738505459137,-500.0,0.00011095,2]
[351274732,1738505459147,-500.0,0.00011095,2]
[351274733,1738505459157,-1637.22,0.00011095,2]
[351274734,1738505459167,-3416.51,0.00011095,2]
[351274735,1738505459178,-882.55,0.00011095,2]
[351274736,1738505459188,-500.0,0.00011095,2]
[351274737,1738505459199,-500.0,0.00011095,2]
[351274738,1738505459209,-4127.67,0.00011095,2]
[351274739,1738505459219,-500.0,0.00011095,2]
[351274740,1738505459229,-9172.95,0.00011095,2]
[351274741,1738505459239,-716.69,0.00011095,2]
[351274742,1738505459248,-500.0,0.00011095,2]
[351274743,1738505459258,-500.0,0.00011095,2]
[351274744,1738505459269,-500.0,0.00011095,2]
[351274745,1738505459279,-500.0,0.00011095,2]
[351274746,1738505459289,-3935.05,0.00011095,2]
[351274747,1738505459299,-994.51,0.00011095,2]
[351274748,1738505459309,-500.0,0.00011095,2]
[351274749,1738505459319,-2231.33,0.00011095,2]
[351274750,1738505459329,-646.36,0.00011095,2]
[351274751,1738505459340,-612.75,0.00011095,2]
[351274752,1738505459350,-7703.46,0.00011095,2]
[351274753,1738505459360,-6130.86,0.00011095,2]
[351274754,1738505459371,-1008.29,0.00011095,2]
[351274755,1738505459381,-4888.75,0.00011095,2]
[351274756,1738505459391,-4468.98,0.00011095,2]
[351274757,1738505459401,-874.52,0.00011095,2]
[351274758,1738505459411,-500.0,0.00011095,2]
[351274759,1738505459421,-500.0,0.00011095,2]
[351274760,1738505459432,-500.0,0.00011095,2]
[351274761,1738505459442,-500.0,0.00011095,2]
[351274762,1738505459451,-7017.85,0.00011095,2]
[351274763,1738505459461,-7067.83,0.00011095,2]
[351274764,1738505459472,-514.41457302,0.00011095,2]
[351274765,1738505459482,-500.0,0.00011095,2]
[351274766,1738505459492,-504.51,0.00011095,2]
[351274767,1738505459502,-500.0,0.00011095,2]
[351274768,1738505459513,-1694.57,0.00011095,2]
[351274769,1738505459527,-809.09,0.00011095,2]
[351274770,1738505459537,-502.80462348,0.00011095,2]
[351274771,1738505459547,-500.0,0.00011095,2]
[351274772,1738505459558,-1463.68,0.00011095,2]
[351274773,1738505459568,-957.1,0.00011095,2]
[351274774,1738505459578,-500.0,0.00011095,2]
[351274775,1738505459588,-500.0,0.00011095,2]
[351274776,1738505459600,-500.0,0.00011095,2]
[351274777,1738505459610,-500.0,0.00011095,2]
[351274778,1738505459621,-25450.62,0.00011095,2]
[351274779,1738505459635,-5901.35,0.00011095,2]
[351274780,1738505459645,-3194.77,0.00011095,2]
[351274781,1738505459655,-972.11,0.00011095,2]
[351274782,1738505459665,-500.0,0.00011095,2]
[351274783,1738505459675,-500.0,0.00011095,2]
[351274784,1738505459684,-500.0,0.00011095,2]
[351274785,1738505459694,-978.28,0.00011095,2]
[351274786,1738505459704,-1927.34,0.00011095,2]
[351274787,1738505459713,-500.0,0.00011095,2]
[351274788,1738505459722,-500.0,0.00011095,2]
[351274789,1738505459731,-1313.38,0.00011095,2]
[351274790,1738505459741,-2290.65,0.00011095,2]
[351274791,1738505459750,-1822.98,0.00011095,2]
[351274792,1738505459759,-500.0,0.00011095,2]
[351274793,1738505459768,-500.0,0.00011095,2]
[351274794,1738505459778,-4241.49,0.00011095,2]
[351274795,1738505459787,-500.0,0.00011095,2]
[351274796,1738505459797,-778.33,0.00011095,2]
[351274797,1738505459806,-2811.74,0.00011095,2]
[351274798,1738505459816,-500.0,0.00011095,2]
[351274799,1738505459825,-500.0,0.00011095,2]
[351274800,1738505459835,-500.0,0.00011095,2]
[351274801,1738505459844,-500.0,0.00011095,2]
[351274802,1738505459854,-2753.15,0.00011095,2]
[351274803,1738505459864,-500.0,0.00011095,2]
[351274804,1738505459873,-3179.79,0.00011095,2]
[351274805,1738505459883,-11875.49,0.00011095,2]
[351274806,1738505459893,-590.79,0.00011095,2]
[351274807,1738505459903,-500.0,0.00011095,2]
[351274808,1738505459914,-2422.99,0.00011095,2]
[351274809,1738505459925,-500.0,0.00011095,2]
[351274810,1738505459935,-1805.01,0.00011095,2]
[351274811,1738505459945,-500.0,0.00011095,2]
[351274812,1738505459956,-500.0,0.00011095,2]
[351274813,1738505459969,-500.0,0.00011095,2]
[351274814,1738505459979,-500.0,0.00011095,2]
[351274815,1738505459989,-1720.61,0.00011095,2]
[351274816,1738505459998,-8941.69,0.00011095,2]
[351274817,1738505460009,-890.83,0.00011095,2]
[351274818,1738505460019,-500.0,0.00011095,2]
[351274819,1738505460029,-924.98,0.00011095,2]
[351274820,1738505460039,-500.0,0.00011095,2]
[351274821,1738505460049,-2796.09,0.00011095,2]
[351274822,1738505460063,-500.0,0.00011095,2]
[351274823,1738505460074,-753.96,0.00011095,2]
[351274824,1738505460085,-2827.17,0.00011095,2]
[351274825,1738505460097,-1515.55,0.00011095,2]
[351274826,1738505460108,-500.0,0.00011095,2]
[351274827,1738505460118,-500.0,0.00011095,2]
[351274828,1738505460129,-500.0,0.00011095,2]
[351274829,1738505460139,-8022.15,0.00011095,2]
[351274830,1738505460150,-1171.94,0.00011095,2]
[351274831,1738505460161,-500.0,0.00011095,2]
[351274832,1738505460172,-741.26,0.00011095,2]
[351274833,1738505460182,-1314.16,0.00011095,2]
[351274834,1738505460192,-500.0,0.00011095,2]
[351274835,1738505460202,-500.0,0.00011095,2]
[351274836,1738505460212,-500.0,0.00011095,2]
[351274837,1738505460222,-596.08,0.00011095,2]
[351274838,1738505460232,-2587.99,0.00011095,2]
[351274839,1738505460242,-500.0,0.00011095,2]
[351274840,1738505460252,-367.6888459,0.00011095,2]
[351274841,1738505460263,-770.44,0.00011095,2]
[351274842,1738505460272,-3707.36,0.00011095,2]
[351274843,1738505460283,-500.0,0.00011095,2]
[351274844,1738505460293,-378.95952063,0.00011095,2]
[351274845,1738505460303,-500.0,0.00011095,2]
[351274846,1738505460313,-500.0,0.00011095,2]
[351274847,1738505460323,-500.0,0.00011095,2]
[351274848,1738505460334,-651.22,0.00011095,2]
[351274849,1738505460345,-500.0,0.00011095,2]
[351274850,1738505460355,-500.0,0.00011095,2]
[351274851,1738505460366,-500.0,0.00011095,2]
[351274852,1738505460377,-500.0,0.00011095,2]
[351274853,1738505460387,-500.0,0.00011095,2]
[351274854,1738505460397,-283.67379645,0.00011095,2]
[351274855,1738505460407,-3360.44,0.00011098,2]
[351274856,1738505460417,-1000.0,0.00011099,2]
[351274857,1738505460429,-1675.28514633,0.00011099,2]
[351274858,1738505460440,-1512.68,0.0001113,2]
[351274859,1738505460451,-1656.84,0.0001113,2]
[351274860,1738505460700,-500.0,0.00011131,2]
[351274861,1738505460710,-161.03133515,0.00011132,2]
[351274862,1738505460719,-300.0,0.00011178,2]
[351274863,1738505460729,-150.0,0.00011178,2]
[351274864,1738505460739,-298.51,0.00011178,2]
[351274865,1738505460748,-150.0,0.00011178,2]
[351274866,1738505460759,-984.28,0.00011178,2]
[351274867,1738505460768,-438.46,0.00011178,2]
[351274868,1738505460778,-150.0,0.00011178,2]
[351274869,1738505460788,-1549.91,0.00011205,2]
[351274870,1738505460798,-31303.0,0.00011205,2]
[351274871,1738505460808,-7119.74353816,0.00011223,2]
[351274872,1738505460817,-160.67467263,0.0001123,2]
[351274873,1738505460827,-503.04145184,0.00011231,2]
[351274874,1738505460837,-1512.68,0.00011231,2]
[351274875,1738505460847,-1512.68,0.00011231,2]
[351274876,1738505460857,-500.0,0.00011231,2]
[351274877,1738505460866,-1198.33,0.00011231,2]
[351274878,1738505460876,-1198.33,0.00011231,2]
[351274879,1738505460886,-1198.33,0.00011231,2]
[351274880,1738505460895,-1549.91,0.00011231,2]
[351274881,1738505460905,-1549.91,0.00011231,2]
[351274882,1738505460915,-1549.91,0.00011231,2]
[351274883,1738505460930,-3360.44,0.00011231,2]
[351274884,1738505460940,-3360.44,0.00011231,2]
[351274885,1738505460950,-3360.44,0.00011231,2]
[351274886,1738505460960,-1656.84,0.00011231,2]
[351274887,1738505460970,-1656.84,0.00011231,2]
[351274888,1738505460979,-503.68936495,0.00011232,2]
[351274889,1738505460988,-500.0,0.00011232,2]
[351274890,1738505460998,-500.0,0.00011232,2]
[351274891,1738505461007,-500.0,0.00011232,2]
[351274892,1738505461017,-500.0,0.00011232,2]
[351274893,1738505461026,-500.0,0.00011232,2]
[351274894,1738505461036,-500.0,0.00011232,2]
[351274895,1738505461045,-500.0,0.00011232,2]
[351274896,1738505461055,-559.46,0.00011232,2]
[351274897,1738505461064,-500.0,0.00011232,2]
[351274898,1738505461073,-607.97441263,0.00011232,2]
[351274899,1738505461083,-500.0,0.00011232,2]
[351274900,1738505461092,-504.5288054,0.00011232,2]
[351274901,1738505461102,-500.0,0.00011232,2]
[351274902,1738505461111,-803.7,0.00011232,2]
[351274903,1738505461121,-500.0,0.00011232,2]
[351274904,1738505461131,-500.0,0.00011232,2]
[351274905,1738505461140,-504.00214114,0.00011232,2]
[351274906,1738505461150,-500.0,0.00011232,2]
[351274907,1738505461159,-500.0,0.00011232,2]
[351274908,1738505461168,-622.78034717,0.00011232,2]
[351274909,1738505461181,-501.64690389,0.00011232,2]
[351274910,1738505461190,-500.0,0.00011232,2]
[351274911,1738505461200,-500.0,0.00011232,2]
[351274912,1738505461210,-801.06,0.00011232,2]
[351274913,1738505461219,-503.67419246,0.00011232,2]
[351274914,1738505461228,-500.0,0.00011232,2]
[351274915,1738505461238,-500.0,0.00011232,2]
[351274916,1738505461247,-773.23,0.00011232,2]
[351274917,1738505461256,-500.0,0.00011232,2]
[351274918,1738505461266,-500.0,0.00011232,2]
[351274919,1738505461275,-500.0,0.00011232,2]
[351274920,1738505461284,-500.0,0.00011232,2]
[351274921,1738505461294,-759.9,0.00011232,2]
[351274922,1738505461303,-505.86491657,0.00011232,2]
[351274923,1738505461313,-1260.15,0.00011232,2]
[351274924,1738505461322,-589.03,0.00011232,2]
[351274925,1738505461332,-500.0,0.00011232,2]
[351274926,1738505461342,-311.09615036,0.00011232,2]
[351274927,1738505461352,-500.0,0.00011232,2]
[351274928,1738505461361,-500.0,0.00011232,2]
[351274929,1738505461370,-500.0,0.00011232,2]
[351274930,1738505461380,-500.0,0.00011232,2]
[351274931,1738505461390,-500.0,0.00011232,2]
[351274932,1738505461399,-500.0,0.00011232,2]
[351274933,1738505461409,-500.0,0.00011232,2]
[351274934,1738505461418,-500.0,0.00011232,2]
[351274935,1738505461430,-1063.41,0.00011232,2]
[351274936,1738505461440,-673.02,0.00011232,2]
[351274937,1738505461450,-500.0,0.00011232,2]
[351274938,1738505461459,-500.0,0.00011232,2]
[351274939,1738505461469,-164.38587456,0.00011232,2]
[351274940,1738505461479,-500.0,0.00011232,2]
[351274941,1738505461488,-500.0,0.00011232,2]
[351274942,1738505461498,-500.0,0.00011232,2]
[351274943,1738505461507,-821.68,0.00011232,2]
[351274944,1738505461518,-549.88,0.00011232,2]
[351274945,1738505461529,-500.0,0.00011232,2]
[351274946,1738505461539,-500.0,0.00011232,2]
[351274947,1738505461548,-500.0,0.00011232,2]
[351274948,1738505461558,-703.15,0.00011232,2]
[351274949,1738505461571,-500.0,0.00011232,2]
[351274950,1738505461580,-514.03147933,0.00011232,2]
[351274951,1738505461590,-500.0,0.00011232,2]
[351274952,1738505461601,-828.9,0.00011232,2]
[351274953,1738505461611,-500.0,0.00011232,2]
[351274954,1738505461621,-500.0,0.00011232,2]
[351274955,1738505461630,-627.47,0.00011232,2]
[351274956,1738505461640,-731.11,0.00011232,2]
[351274957,1738505461650,-500.0,0.00011232,2]
[351274958,1738505461659,-500.0,0.00011232,2]
[351274959,1738505461669,-500.0,0.00011232,2]
[351274960,1738505461681,-500.0,0.00011232,2]
[351274961,1738505461690,-500.0,0.00011232,2]
[351274962,1738505461699,-500.0,0.00011232,2]
[351274963,1738505461710,-592.69,0.00011232,2]
[351274964,1738505461719,-500.0,0.00011232,2]
[351274965,1738505461730,-500.0,0.00011232,2]
[351274966,1738505461739,-500.0,0.00011232,2]
[351274967,1738505461749,-500.0,0.00011232,2]
[351274968,1738505461758,-500.0,0.00011232,2]
[351274969,1738505461768,-500.0,0.00011232,2]